fUST/lending_fUST_20240415
["ID","MTS","AMOUNT","RATE_DAILY","PERIOD"]
[322661979,1713195046547,-1521.375515,0.00032876,2]
[322661980,1713195046557,-1521.375515,0.00032876,2]
[322661981,1713195046567,-2555.84,0.00032876,7]
[322661982,1713195046576,-642.69444676,0.00032876,7]
[322661983,1713195046586,-1521.375515,0.00032876,2]
[322661984,1713195046602,-9541.84,0.00032876,7]
[322661985,1713195046612,-1521.375515,0.00032876,2]
[322661986,1713195046621,-1521.375515,0.00032876,2]
[322661987,1713195046631,-1521.375515,0.00032876,2]
[322661988,1713195046640,-500.0,0.00032876,7]
[322661989,1713195046649,-216.589495,0.00032877,2]
[322661990,1713195046658,-1824.12,0.00033148,2]
[322661991,1713195046668,-1824.12,0.00033148,2]
[322661992,1713195046678,-1824.12,0.00033148,2]
[322661993,1713195046688,-1824.12,0.00033148,2]
[322661994,1713195046697,-1824.12,0.00033148,2]
[322661995,1713195046706,-1824.12,0.00033148,2]
[322661996,1713195046716,-1824.12,0.00033148,2]
[322661997,1713195046725,-1824.12,0.00033148,2]
[322661998,1713195046735,-1824.12,0.00033148,2]
[322661999,1713195046744,-1824.12,0.00033148,2]
[322662000,1713195046754,-477.447791,0.00033148,2]
[322662001,1713195046763,-477.447791,0.00033148,2]
[322662002,1713195046772,-21082.18,0.00033148,7]
[322662003,1713195046781,-1521.375515,0.00033148,2]
[322662004,1713195046791,-151.0,0.00033148,2]
[322662005,1713195046800,-1521.375515,0.00033148,2]
[322662006,1713195046809,-208.675397,0.00033149,2]
[322662007,1713195046819,-208.675397,0.00033149,2]
[322662008,1713195046829,-265.179444,0.00033149,2]
[322662009,1713195046839,-477.447791,0.00033149,2]
[322662010,1713195046857,-477.447791,0.00033149,2]
[322662011,1713195046867,-21082.18,0.00033149,7]
[322662012,1713195046878,-21082.18,0.00033149,7]
[322662013,1713195046888,-21082.18,0.00033149,7]
[322662014,1713195046899,-21082.18,0.00033149,7]
[322662015,1713195046909,-21082.18,0.00033149,7]
[322662016,1713195046920,-21082.18168349,0.00033149,7]
[322662017,1713195046931,-1521.375515,0.00033149,2]
[322662018,1713195046942,-151.0,0.00033149,2]
[322662019,1713195046954,-1521.375515,0.00033149,2]
[322662020,1713195046965,-532.19,0.0003315,7]
[322662021,1713195046976,-500.0,0.0003315,7]
[322662022,1713195046989,-500.0,0.0003315,7]
[322662023,1713195047001,-503.22820684,0.0003315,7]
[322662024,1713195047011,-500.0,0.0003315,7]
[322662025,1713195047022,-526.52220413,0.0003315,7]
[322662026,1713195047032,-478.15300425,0.0003315,7]
[322662027,1713195047043,-500.0,0.0003315,7]
[322662028,1713195047053,-377.37248519,0.0003315,7]
[322662029,1713195047064,-345.59931271,0.0003315,7]
[322662030,1713195047075,-500.0,0.0003315,7]
[322662031,1713195047091,-500.0,0.0003315,7]
[322662032,1713195047107,-500.0,0.0003315,7]
[322662033,1713195047119,-502.65072219,0.0003315,7]
[322662034,1713195047129,-500.0,0.0003315,7]
[322662035,1713195047139,-500.0,0.0003315,7]
[322662036,1713195047150,-517.7,0.0003315,7]
[322662037,1713195047161,-546.55355523,0.0003315,7]
[322662038,1713195047171,-500.0,0.0003315,7]
[322662039,1713195047181,-500.0,0.0003315,7]
[322662040,1713195047193,-598.84713523,0.0003315,7]
[322662041,1713195047203,-500.0,0.0003315,7]
[322662042,1713195047213,-500.0,0.0003315,7]
[322662043,1713195047223,-507.94373631,0.0003315,7]
[322662044,1713195047233,-500.0,0.0003315,7]
[322662045,1713195047242,-273.97846407,0.0003315,7]
[322662046,1713195047252,-500.0,0.0003315,7]
[322662047,1713195047261,-500.0,0.0003315,7]
[322662048,1713195047271,-500.0,0.0003315,7]
[322662049,1713195047280,-910.32,0.0003315,7]
[322662050,1713195047290,-500.0,0.0003315,7]
[322662051,1713195047299,-500.0,0.0003315,7]
[322662052,1713195047309,-500.0,0.0003315,7]
[322662053,1713195047318,-500.0,0.0003315,7]
[322662054,1713195047328,-500.0,0.0003315,7]
[322662055,1713195047337,-500.0,0.0003315,7]
[322662056,1713195047349,-500.0,0.0003315,7]
[322662057,1713195047358,-513.75,0.0003315,7]
[322662058,1713195047368,-300.0,0.0003315,7]
[322662059,1713195047377,-603.71100054,0.0003315,7]
[322662060,1713195047387,-500.0,0.0003315,7]
[322662061,1713195047396,-780.2,0.0003315,7]
[322662062,1713195047405,-500.0,0.0003315,7]
[322662063,1713195047414,-500.0,0.0003315,7]
[322662064,1713195047424,-507.1245584,0.0003315,7]
[322662066,1713195047433,-500.0,0.0003315,7]
[322662067,1713195047442,-500.0,0.0003315,7]
[322662068,1713195047451,-506.38074889,0.0003315,7]
[322662070,1713195047461,-503.30030449,0.0003315,7]
[322662072,1713195047470,-500.0,0.0003315,2]
[322662074,1713195047480,-2806.25,0.0003315,7]
[322662076,1713195047490,-500.0,0.0003315,7]
[322662078,1713195047499,-261.11522902,0.0003315,7]
[322662080,1713195047508,-597.0811703,0.0003315,7]
[322662082,1713195047521,-501.84482706,0.0003315,7]
[322662084,1713195047531,-500.0,0.0003315,7]
[322662086,1713195047540,-831.76,0.0003315,7]
[322662088,1713195047550,-500.0,0.0003315,7]
[322662090,1713195047561,-500.0,0.0003315,7]
[322662092,1713195047570,-500.0,0.0003315,7]
[322662094,1713195047579,-500.0,0.0003315,7]
[322662096,1713195047589,-508.33,0.0003315,7]
[322662098,1713195047603,-500.0,0.0003315,7]
[322662100,1713195047612,-500.0,0.0003315,7]
[322662102,1713195047621,-500.0,0.0003315,7]
[322662104,1713195047629,-500.0,0.0003315,7]
[322662106,1713195047638,-500.0,0.0003315,7]
[322662108,1713195047647,-500.09216387,0.0003315,7]
[322662110,1713195047657,-500.0,0.0003315,7]
[322662111,1713195047668,-500.0,0.0003315,7]
[322662113,1713195047677,-500.0,0.0003315,7]
[322662116,1713195047687,-500.0,0.0003315,7]
[322662117,1713195047696,-2045.35,0.0003315,7]
[322662119,1713195047705,-500.0,0.0003315,7]
[322662121,1713195047714,-896.97,0.0003315,7]
[322662123,1713195047724,-500.0,0.0003315,7]
[322662125,1713195047733,-500.0,0.0003315,7]
[322662127,1713195047742,-500.0,0.0003315,7]
[322662130,1713195047751,-500.0,0.0003315,7]
[322662132,1713195047760,-500.0,0.0003315,7]
[322662133,1713195047770,-500.0,0.0003315,7]
[322662135,1713195047779,-500.0,0.0003315,7]
[322662138,1713195047789,-500.0,0.0003315,7]
[322662140,1713195047798,-500.0,0.0003315,7]
[322662141,1713195047808,-503.82979499,0.0003315,7]
[322662143,1713195047817,-500.0,0.0003315,7]
[322662145,1713195047827,-500.0,0.0003315,7]
[322662147,1713195047836,-225.53391412,0.0003315,7]
[322662149,1713195047850,-509.65141509,0.0003315,7]
[322662151,1713195047860,-151.0,0.0003315,2]
[322662153,1713195047869,-151.0,0.0003315,2]
[322662155,1713195047878,-222.636984,0.0003315,2]
[322662157,1713195047887,-544.1,0.0003315,7]
[322662159,1713195047896,-500.0,0.0003315,7]
[322662161,1713195047905,-500.0,0.0003315,7]
[322662163,1713195047915,-500.0,0.0003315,7]
[322662165,1713195047924,-500.0,0.0003315,7]
[322662167,1713195047933,-500.0,0.0003315,7]
[322662169,1713195047942,-500.0,0.0003315,7]
[322662172,1713195047951,-502.086622,0.0003315,7]
[322662174,1713195047961,-500.0,0.0003315,7]
[322662175,1713195047970,-500.0,0.0003315,7]
[322662178,1713195047979,-1000.0,0.0003315,2]
[322662180,1713195047988,-502.83882041,0.0003315,7]
[322662182,1713195047997,-301.9546303,0.0003315,7]
[322662184,1713195048007,-500.0,0.0003315,7]
[322662186,1713195048016,-2634.01,0.0003315,7]
[322662188,1713195048025,-500.0,0.0003315,7]
[322662190,1713195048035,-500.0,0.0003315,7]
[322662192,1713195048044,-500.0,0.0003315,7]
[322662194,1713195048053,-500.0,0.0003315,7]
[322662196,1713195048062,-500.0,0.0003315,7]
[322662198,1713195048071,-500.0,0.0003315,7]
[322662200,1713195048080,-520.29099779,0.0003315,7]
[322662202,1713195048088,-500.0,0.0003315,7]
[322662204,1713195048100,-500.0,0.0003315,7]
[322662205,1713195048109,-500.0,0.0003315,7]
[322662207,1713195048117,-847.63,0.0003315,7]
[322662208,1713195048126,-500.0,0.0003315,7]
[322662209,1713195048135,-504.2052794,0.0003315,7]
[322662210,1713195048145,-179.92888977,0.0003315,7]
[322662211,1713195048154,-517.31903872,0.0003315,7]
[322662212,1713195048164,-500.0,0.0003315,7]
[322662214,1713195048173,-500.0,0.0003315,7]
[322662215,1713195048181,-500.0,0.0003315,7]
[322662216,1713195048190,-671.17,0.0003315,7]
[322662217,1713195048200,-208.675397,0.0003315,2]
[322662218,1713195048209,-500.0,0.0003315,7]
[322662219,1713195048218,-208.675397,0.0003315,2]
[322662220,1713195048256,-208.675397,0.0003315,2]
[322662222,1713195048266,-1003.2,0.0003315,7]
[322662224,1713195048275,-500.0,0.0003315,7]
[322662226,1713195048284,-208.675397,0.0003315,2]
[322662228,1713195048293,-208.675397,0.0003315,2]
[322662230,1713195048303,-208.675397,0.0003315,2]
[322662232,1713195048312,-500.0,0.0003315,7]
[322662234,1713195048323,-590.78,0.0003315,7]
[322662236,1713195048332,-500.0,0.0003315,7]
[322662238,1713195048341,-505.25225384,0.0003315,7]
[322662240,1713195048356,-1089.47,0.0003315,7]
[322662242,1713195048365,-500.0,0.0003315,7]
[322662245,1713195048377,-500.0,0.0003315,7]
[322662247,1713195048386,-500.0,0.0003315,7]
[322662249,1713195048395,-500.0,0.0003315,7]
[322662251,1713195048404,-575.82,0.0003315,7]
[322662253,1713195048413,-528.56970342,0.0003315,7]
[322662255,1713195048422,-623.28,0.0003315,7]
[322662257,1713195048431,-500.0,0.0003315,7]
[322662258,1713195048440,-500.0,0.0003315,7]
[322662259,1713195048449,-500.0,0.0003315,7]
[322662260,1713195048458,-500.0,0.0003315,7]
[322662261,1713195048467,-500.0,0.0003315,7]
[322662262,1713195048475,-713.17,0.0003315,7]
[322662263,1713195048485,-500.0,0.0003315,7]
[322662264,1713195048495,-317.93654528,0.0003315,7]
[322662265,1713195048504,-500.0,0.0003315,7]
[322662266,1713195048514,-500.0,0.0003315,7]
[322662267,1713195048524,-500.0,0.0003315,7]
[322662268,1713195048539,-500.0,0.0003315,7]
[322662269,1713195048550,-500.0,0.0003315,7]
[322662270,1713195048559,-652.33,0.0003315,7]
[322662271,1713195048569,-500.0,0.0003315,7]
[322662272,1713195048579,-500.0,0.0003315,7]
[322662273,1713195048588,-500.0,0.0003315,7]
[322662274,1713195048601,-500.0,0.0003315,7]
[322662275,1713195048612,-501.24738634,0.0003315,7]
[322662276,1713195048622,-1895.85,0.0003315,7]
[322662277,1713195048631,-500.0,0.0003315,7]
[322662278,1713195048641,-1960.27,0.0003315,7]
[322662279,1713195048651,-500.0,0.0003315,7]
[322662280,1713195048660,-201.57316467,0.0003315,7]
[322662281,1713195048670,-500.0,0.0003315,7]
[322662282,1713195048680,-500.0,0.0003315,7]
[322662283,1713195048690,-500.0,0.0003315,7]
[322662284,1713195048701,-500.0,0.0003315,7]
[322662285,1713195048711,-3018.7,0.0003315,7]
[322662286,1713195048720,-500.0,0.0003315,7]
[322662287,1713195048729,-500.0,0.0003315,7]
[322662288,1713195048738,-500.0,0.0003315,7]
[322662289,1713195048747,-500.0,0.0003315,7]
[322662290,1713195048757,-500.0,0.0003315,7]
[322662291,1713195048766,-500.0,0.0003315,7]
[322662292,1713195048775,-500.0,0.0003315,7]
[322662293,1713195048785,-500.0,0.0003315,7]
[322662294,1713195048794,-3126.18,0.0003315,7]
[322662295,1713195048803,-557.31,0.0003315,7]
[322662296,1713195048812,-500.0,0.0003315,7]
[322662297,1713195048821,-757.85,0.0003315,7]
[322662298,1713195048831,-500.0,0.0003315,7]
[322662299,1713195048840,-500.0,0.0003315,7]
[322662300,1713195048852,-500.0,0.0003315,7]
[322662301,1713195048861,-719.65,0.0003315,7]
[322662302,1713195048870,-500.0,0.0003315,7]
[322662303,1713195048879,-500.0,0.0003315,7]
[322662304,1713195048888,-500.0,0.0003315,7]
[322662305,1713195048898,-6792.28,0.0003315,7]
[322662306,1713195048907,-500.0,0.0003315,7]
[322662307,1713195048916,-564.14,0.0003315,7]
[322662308,1713195048928,-500.0,0.0003315,7]
[322662309,1713195048937,-9058.56,0.0003315,7]
[322662310,1713195048946,-500.0,0.0003315,7]
[322662311,1713195048955,-1776.83,0.0003315,7]
[322662312,1713195048965,-500.0,0.0003315,7]
[322662313,1713195048976,-502.73378913,0.0003315,7]
[322662314,1713195048985,-1932.9,0.0003315,7]
[322662315,1713195048995,-500.0,0.0003315,7]
[322662316,1713195049004,-731.34,0.0003315,7]
[322662317,1713195049015,-500.0,0.0003315,7]
[322662318,1713195049024,-2791.46,0.0003315,7]
[322662319,1713195049034,-500.0,0.0003315,7]
[322662320,1713195049043,-500.0,0.0003315,7]
[322662321,1713195049053,-591.2,0.0003315,7]
[322662322,1713195049063,-2623.62,0.0003315,7]
[322662323,1713195049074,-500.0,0.0003315,7]
[322662324,1713195049085,-500.0,0.0003315,7]
[322662325,1713195049100,-500.0,0.0003315,7]
[322662326,1713195049111,-4507.1,0.0003315,7]
[322662327,1713195049125,-500.0,0.0003315,7]
[322662328,1713195049138,-313.27641001,0.0003315,7]
[322662329,1713195049151,-500.0,0.0003315,7]
[322662330,1713195049162,-176.22142461,0.0003315,7]
[322662331,1713195049175,-500.0,0.0003315,7]
[322662332,1713195049186,-511.52574006,0.0003315,7]
[322662333,1713195049197,-927.93,0.0003315,7]
[322662334,1713195049208,-1028.49,0.0003315,7]
[322662335,1713195049219,-500.0,0.0003315,7]
[322662336,1713195049230,-16552.91,0.0003315,7]
[322662337,1713195049243,-500.0,0.0003315,7]
[322662338,1713195049255,-500.0,0.0003315,7]
[322662339,1713195049267,-3791.99,0.0003315,7]
[322662340,1713195049278,-632.31,0.0003315,7]
[322662341,1713195049289,-932.35,0.0003315,7]
[322662342,1713195049300,-500.0,0.0003315,7]
[322662343,1713195049311,-500.0,0.0003315,7]
[322662344,1713195049323,-500.0,0.0003315,7]
[322662345,1713195049334,-500.0,0.0003315,7]
[322662346,1713195049344,-500.0,0.0003315,7]
[322662347,1713195049360,-1572.43,0.0003315,7]
[322662348,1713195049369,-500.0,0.0003315,7]
[322662349,1713195049378,-500.0,0.0003315,7]
[322662350,1713195049388,-839.29,0.0003315,7]
[322662351,1713195049397,-500.0,0.0003315,7]
[322662352,1713195049407,-500.0,0.0003315,7]
[322662353,1713195049416,-1505.25,0.0003315,7]
[322662354,1713195049426,-500.0,0.0003315,7]
[322662355,1713195049436,-568.35,0.0003315,7]
[322662356,1713195049445,-500.0,0.0003315,7]
[322662357,1713195049455,-618.29175402,0.0003315,7]
[322662358,1713195049465,-2076.23,0.0003315,7]
[322662359,1713195049480,-500.0,0.0003315,7]
[322662360,1713195049491,-500.0,0.0003315,7]
[322662361,1713195049500,-500.0,0.0003315,7]
[322662362,1713195049511,-663.75,0.0003315,7]
[322662363,1713195049525,-477.447791,0.0003315,2]
[322662364,1713195049535,-500.0,0.0003315,7]
[322662365,1713195049546,-477.447791,0.0003315,2]
[322662366,1713195049557,-500.0,0.0003315,7]
[322662367,1713195049566,-504.06426135,0.0003315,7]
[322662368,1713195049576,-500.0,0.0003315,7]
[322662369,1713195049585,-477.447791,0.0003315,2]
[322662370,1713195049596,-477.447795,0.0003315,2]
[322662371,1713195049608,-585.35500815,0.0003315,7]
[322662372,1713195049618,-500.0,0.0003315,7]
[322662373,1713195049627,-26323.24,0.0003315,7]
[322662374,1713195049637,-1078.88,0.0003315,7]
[322662375,1713195049647,-503.40742812,0.0003315,7]
[322662376,1713195049656,-500.0,0.0003315,7]
[322662377,1713195049666,-50959.28,0.0003315,7]
[322662378,1713195049675,-500.0,0.0003315,7]
[322662379,1713195049684,-1145.97,0.0003315,7]
[322662380,1713195049694,-500.0,0.0003315,7]
[322662381,1713195049703,-524.59068916,0.0003315,7]
[322662382,1713195049712,-507.36829806,0.0003315,7]
[322662383,1713195049722,-862.73,0.0003315,7]
[322662384,1713195049732,-500.0,0.0003315,7]
[322662385,1713195049741,-500.0,0.0003315,7]
[322662386,1713195049750,-5588.24,0.0003315,7]
[322662387,1713195049760,-500.0,0.0003315,7]
[322662388,1713195049769,-500.0,0.0003315,7]
[322662389,1713195049779,-500.0,0.0003315,7]
[322662390,1713195049790,-10616.55,0.0003315,7]
[322662391,1713195049801,-5593.81,0.0003315,7]
[322662392,1713195049810,-1167.71,0.0003315,7]
[322662393,1713195049821,-500.0,0.0003315,7]
[322662394,1713195049831,-539.03,0.0003315,7]
[322662395,1713195049840,-500.0,0.0003315,7]
[322662396,1713195049851,-819.99,0.0003315,7]
[322662397,1713195049860,-3211.31,0.0003315,7]
[322662398,1713195049870,-500.0,0.0003315,7]
[322662399,1713195049879,-500.0,0.0003315,7]
[322662400,1713195049888,-500.0,0.0003315,7]
[322662401,1713195049898,-500.0,0.0003315,7]
[322662402,1713195049908,-2334.44,0.0003315,7]
[322662403,1713195049918,-500.0,0.0003315,7]
[322662404,1713195049928,-828.9,0.0003315,7]
[322662405,1713195049937,-1110.43,0.0003315,7]
[322662406,1713195049947,-500.0,0.0003315,7]
[322662407,1713195049957,-580.18578745,0.0003315,7]
[322662408,1713195049966,-500.0,0.0003315,7]
[322662409,1713195049975,-500.0,0.0003315,7]
[322662410,1713195049985,-567.09,0.0003315,7]
[322662411,1713195049995,-500.0,0.0003315,7]
[322662412,1713195050004,-500.0,0.0003315,7]
[322662413,1713195050014,-500.0,0.0003315,7]
[322662414,1713195050024,-500.0,0.0003315,7]
[322662415,1713195050033,-816.1,0.0003315,7]
[322662416,1713195050044,-500.0,0.0003315,7]
[322662417,1713195050054,-500.0,0.0003315,7]
[322662418,1713195050064,-500.0,0.0003315,7]
[322662419,1713195050074,-2945.49,0.0003315,7]
[322662420,1713195050084,-1521.375515,0.0003315,2]
[322662421,1713195050094,-500.0,0.0003315,7]
[322662422,1713195050106,-5523.1,0.0003315,7]
[322662423,1713195050116,-500.0,0.0003315,7]
[322662424,1713195050126,-500.0,0.0003315,7]
[322662425,1713195050136,-151.0,0.0003315,2]
[322662426,1713195050146,-2555.84,0.0003315,7]
[322662427,1713195050157,-9541.84,0.0003315,7]
[322662428,1713195050168,-153.0,0.00033151,2]
[322662429,1713195050179,-153.0,0.00033151,2]
[322662430,1713195050189,-153.0,0.00033151,2]
[322662431,1713195050199,-153.0,0.00033151,2]
[322662432,1713195050210,-153.0,0.00033151,2]
[322662433,1713195050225,-153.0,0.00033151,2]
[322662434,1713195050235,-153.0,0.00033151,2]
[322662435,1713195050247,-153.0,0.00033151,2]
[322662436,1713195050258,-153.0,0.00033151,2]
[322662437,1713195050268,-153.0,0.00033151,2]
[322662438,1713195050278,-153.0,0.00033151,2]
[322662439,1713195050288,-153.0,0.00033151,2]
[322662440,1713195050299,-153.0,0.00033151,2]
[322662441,1713195050309,-153.0,0.00033151,2]
[322662442,1713195050320,-153.0,0.00033151,2]
[322662443,1713195050330,-153.0,0.00033151,2]
[322662444,1713195050341,-153.0,0.00033151,2]
[322662445,1713195050358,-421.6130992,0.00033151,2]
[322662446,1713195050369,-153.0,0.00033151,2]
[322662447,1713195050379,-153.0,0.00033151,2]
[322662448,1713195050389,-153.0,0.00033151,2]
[322662449,1713195050399,-309.8296564,0.00033163,4]
[322662450,1713195050409,-156.20491077,0.00033163,4]
[322662451,1713195050419,-465.54275038,0.00033163,2]
[322662452,1713195050430,-1855.17275697,0.00033164,4]
[322662453,1713195050440,-1152.0,0.00033165,2]
[322662454,1713195050451,-208.675397,0.00033423,2]
[322662455,1713195050461,-208.675397,0.00033423,2]
[322662456,1713195050471,-532.19,0.00033424,7]
[322662457,1713195050481,-500.0,0.00033424,7]
[322662458,1713195050491,-500.0,0.00033424,7]
[322662459,1713195050501,-501.72738684,0.00033424,7]
[322662460,1713195050512,-217.25260511,0.00033424,7]
[322662461,1713195050521,-500.0,0.00033424,7]
[322662462,1713195050532,-500.0,0.00033424,7]
[322662463,1713195050544,-500.0,0.00033424,7]
[322662464,1713195050555,-500.0,0.00033424,7]
[322662465,1713195050565,-500.0,0.00033424,7]
[322662466,1713195050576,-517.7,0.00033424,7]
[322662467,1713195050585,-512.76270628,0.00033424,7]
[322662468,1713195050596,-500.0,0.00033424,7]
[322662469,1713195050609,-500.0,0.00033424,7]
[322662470,1713195050619,-555.31881766,0.00033424,7]
[322662471,1713195050629,-262.16571509,0.00033424,7]
[322662472,1713195050640,-500.0,0.00033424,7]
[322662473,1713195050650,-500.0,0.00033424,7]
[322662474,1713195050660,-500.0,0.00033424,7]
[322662475,1713195050670,-910.32,0.00033424,7]
[322662476,1713195050680,-500.0,0.00033424,7]
[322662477,1713195050690,-500.0,0.00033424,7]
[322662478,1713195050702,-500.0,0.00033424,7]
[322662479,1713195050711,-500.0,0.00033424,7]
[322662480,1713195050721,-635.20176344,0.00033424,7]
[322662481,1713195050731,-500.0,0.00033424,7]
[322662482,1713195050741,-500.0,0.00033424,7]
[322662483,1713195050752,-513.75,0.00033424,7]
[322662484,1713195050762,-300.0,0.00033424,7]
[322662485,1713195050772,-567.12535001,0.00033424,7]
[322662486,1713195050782,-780.2,0.00033424,7]
[322662487,1713195050797,-572.90023874,0.00033424,7]
[322662488,1713195050813,-500.0,0.00033424,7]
[322662489,1713195050823,-372.20226657,0.00033424,7]
[322662490,1713195050833,-568.78119514,0.00033424,7]
[322662491,1713195050844,-525.07877069,0.00033424,2]
[322662492,1713195050858,-2806.25,0.00033424,7]
[322662493,1713195050868,-500.0,0.00033424,7]
[322662494,1713195050878,-500.0,0.00033424,7]
[322662495,1713195050890,-831.76,0.00033424,7]
[322662496,1713195050900,-500.0,0.00033424,7]
[322662497,1713195050910,-500.0,0.00033424,7]
[322662498,1713195051019,-515.43455269,0.00033424,7]
[322662499,1713195051029,-500.0,0.00033424,7]
[322662500,1713195051040,-508.33,0.00033424,7]
[322662501,1713195051050,-497.25711445,0.00033424,7]
[322662502,1713195051059,-500.0,0.00033424,7]
[322662503,1713195051068,-500.0,0.00033424,7]
[322662504,1713195051078,-500.0,0.00033424,7]
[322662505,1713195051087,-500.0,0.00033424,7]
[322662506,1713195051096,-500.0,0.00033424,7]
[322662507,1713195051108,-500.0,0.00033424,7]
[322662508,1713195051117,-500.0,0.00033424,7]
[322662509,1713195051127,-500.0,0.00033424,7]
[322662510,1713195051137,-2045.35,0.00033424,7]
[322662511,1713195051146,-500.0,0.00033424,7]
[322662512,1713195051156,-896.97,0.00033424,7]
[322662513,1713195051165,-510.91615152,0.00033424,7]
[322662514,1713195051174,-500.0,0.00033424,7]
[322662515,1713195051184,-503.96196354,0.00033424,7]
[322662516,1713195051193,-160.48721337,0.00033424,7]
[322662517,1713195051202,-500.0,0.00033424,7]
[322662518,1713195051212,-500.0,0.00033424,7]
[322662519,1713195051221,-500.0,0.00033424,7]
[322662520,1713195051231,-500.0,0.00033424,7]
[322662521,1713195051240,-500.0,0.00033424,7]
[322662522,1713195051251,-500.0,0.00033424,7]
[322662523,1713195051260,-500.0,0.00033424,7]
[322662524,1713195051269,-544.1,0.00033424,7]
[322662525,1713195051279,-500.0,0.00033424,7]
[322662526,1713195051289,-500.0,0.00033424,7]
[322662527,1713195051298,-500.0,0.00033424,7]
[322662528,1713195051308,-500.0,0.00033424,7]
[322662529,1713195051318,-500.0,0.00033424,7]
[322662530,1713195051327,-497.48,0.00033424,7]
[322662531,1713195051337,-500.0,0.00033424,7]
[322662532,1713195051346,-500.0,0.00033424,7]
[322662533,1713195051358,-1000.0,0.00033424,2]
[322662534,1713195051367,-500.0,0.00033424,7]
[322662535,1713195051376,-2634.01,0.00033424,7]
[322662536,1713195051386,-500.0,0.00033424,7]
[322662537,1713195051396,-500.0,0.00033424,7]
[322662538,1713195051405,-500.0,0.00033424,7]
[322662539,1713195051416,-500.0,0.00033424,7]
[322662540,1713195051425,-500.0,0.00033424,7]
[322662541,1713195051435,-500.0,0.00033424,7]
[322662542,1713195051445,-500.0,0.00033424,7]
[322662543,1713195051454,-501.80085222,0.00033424,7]
[322662544,1713195051464,-500.0,0.00033424,7]
[322662545,1713195051474,-847.63,0.00033424,7]
[322662546,1713195051483,-500.0,0.00033424,7]
[322662547,1713195051492,-500.0,0.00033424,7]
[322662548,1713195051502,-500.0,0.00033424,7]
[322662549,1713195051513,-500.0,0.00033424,7]
[322662550,1713195051523,-671.17,0.00033424,7]
[322662551,1713195051533,-500.0,0.00033424,7]
[322662552,1713195051545,-1003.2,0.00033424,7]
[322662553,1713195051555,-208.675397,0.00033424,2]
[322662554,1713195051567,-500.0,0.00033424,7]
[322662555,1713195051576,-208.675392,0.00033424,2]
[322662556,1713195051586,-500.0,0.00033424,7]
[322662557,1713195051596,-590.78,0.00033424,7]
[322662558,1713195051609,-500.0,0.00033424,7]
[322662559,1713195051618,-1089.47,0.00033424,7]
[322662560,1713195051630,-500.0,0.00033424,7]
[322662561,1713195051640,-573.41984339,0.00033424,7]
[322662562,1713195051649,-500.0,0.00033424,7]
[322662563,1713195051660,-500.0,0.00033424,7]
[322662564,1713195051670,-575.82,0.00033424,7]
[322662565,1713195051680,-623.28,0.00033424,7]
[322662566,1713195051689,-500.0,0.00033424,7]
[322662567,1713195051699,-281.05363168,0.00033424,7]
[322662568,1713195051708,-500.0,0.00033424,7]